Cogmind - Beta 16 @@@ ROGUE MODE // 2025.11.05 @ 19:03:58 Player: Humbble Result: Destroyed by H-55 Commando with Gauss Rifle Performance ------------- Evolutions (1) 500 Regions Visited (5) 1000 Robots Destroyed (27) 135 Value Destroyed (686) 686 Prototype IDs (0) 0 Alien Tech Used (0) 0 Bonus (0) 0 TOTAL SCORE: 2321 Bonus ------- None Cogmind --------- Core Integrity 0/400 Matter 251/300 Energy 96/100 System Corruption 0% Temperature Cool (2) Movement Walking (175) Ox1 Location -8/Mines Parts ------- > --- POWER (1) -------- (None) > --- PROPULSION (3) --- Aluminum Leg Aluminum Leg > --- UTILITY (3) ------ High-capacity Storage Unit Targeting Computer > --- WEAPON (2) ------- (None) > --- INVENTORY (20) --- Light Ion Engine Improved Ion Engine Experimental Sensor Array Light Armor Plating Beam Rifle Light Assault Rifle Peak State ------------ > --- POWER ------------ Improved Ion Engine > --- PROPULSION ------- Aluminum Leg Aluminum Leg > --- UTILITY ---------- Small Storage Unit Improved Terrain Scanner Terrain Scan Processor > --- WEAPON ----------- EM Shotgun Light Assault Rifle > --- INVENTORY -------- Improved Ion Engine Improved Ion Engine Light Armor Plating Small Laser Shotgun Light Cannon Grenade Launcher [Rating: 14] Favorites ----------- Power Improved Ion Engine Engine Improved Ion Engine Power Core Light Nuclear Core Propulsion Aluminum Leg Treads Light Treads Leg Aluminum Leg Utility Small Storage Unit Device Improved Terrain Scanner Storage Small Storage Unit Processor Terrain Scan Processor Protection Light Armor Plating Weapon Light Assault Rifle Energy Gun EM Pulse Gun Ballistic Gun Light Assault Rifle Ballistic Cannon Light Cannon Build | -11 -10 -9 -9 -9 -8 ------- Run | Yrd Mat Mat Min Exi Min Slots Evolved 2 | . . 2 . . . Power . | . . . . . . Propulsion 1 | . . 1 . . . Utility 1 | . . 1 . . . Weapon . | . . . . . . Parts Attached 29 | 7 2 15 2 2 1 Power 5 | 1 1 2 . . 1 Engine 4 | 1 1 2 . . . Core 1 | . . . . . 1 Reactor . | . . . . . . Propulsion 8 | 2 . 5 . 1 . Treads 4 | 2 . 1 . 1 . Leg 4 | . . 4 . . . Wheel . | . . . . . . Hover . | . . . . . . Flight . | . . . . . . Utility 8 | 2 . 4 1 1 . Device 1 | 1 . . . . . Storage 3 | 1 . 1 . 1 . Processor 2 | . . 1 1 . . Hackware . | . . . . . . Protection 2 | . . 2 . . . Artifact . | . . . . . . Weapon 8 | 2 1 4 1 . . Energy Gun 3 | 2 . 1 . . . Energy Cannon . | . . . . . . Ballistic Gun 4 | . 1 3 . . . Ballistic Cannon 1 | . . . 1 . . Launcher . | . . . . . . Special Weapon . | . . . . . . Impact Weapon . | . . . . . . Slashing Weapon . | . . . . . . Piercing Weapon . | . . . . . . Special Melee Weapon . | . . . . . . Unidentified Prototypes . | . . . . . . Parts Lost 16 | . . 8 . . 8 Power 3 | . . 1 . . 2 Propulsion 6 | . . 3 . . 3 Utility 2 | . . 1 . . 1 Weapon 5 | . . 3 . . 2 Highest Loss Streak 8 | . . 4 . . 8 To Critical Strikes 1 | . . 1 . . . Average Backups 7 | 3 6 7 8 8 7 Power 1 | . 2 1 2 2 2 Propulsion 1 | 1 2 1 2 2 1 Utility 1 | . . 1 2 2 2 Weapon 2 | . 2 3 2 2 2 Tool/Special . | . . . . . . Unused Backups 10 | . 1 5 . . 4 Power 4 | . 1 1 . . 2 Propulsion 1 | . . 1 . . . Utility 2 | . . 1 . . 1 Weapon 3 | . . 2 . . 1 Tool/Special . | . . . . . . Average Slot Usage (%) 94 | . 100 86 100 100 85 Engine 11 | . 14 10 11 11 6 Treads 12 | . 28 7 . 3 17 Leg 15 | . . 15 33 30 12 Device 5 | . 14 5 . . . Storage 11 | . 14 11 11 11 11 Processor 7 | . . 11 11 11 11 Protection 5 | . . 4 11 11 8 Energy Gun 7 | . 19 4 . . . Ballistic Gun 13 | . 9 16 21 11 9 Ballistic Cannon 3 | . . . . 11 8 Peak Build Rating 14 | 9 9 14 12 11 11 Average Rating 9 | 5 8 11 11 11 9 On Entrance 8 | . 9 9 12 11 11 Avg Prop Armor Cover (%) 7 | . . 8 . 5 8 Naked Turns . | . . . . . . Heaviest Build 54 | 15 15 19 19 54 54 Greatest Support 40 | 40 40 40 30 40 40 Greatest Overweight (x) 2 | . . 1 . 1 2 Average Overweight (x) . | . . . . . 1 Largest Inventory Capacity 20 | 8 8 8 8 20 20 Average Capacity 8 | 7 8 8 8 10 20 Most Carried 8 | 6 8 8 8 8 8 Average Carried 7 | 3 6 7 7 8 7 Final Capacity 20 | 8 8 8 8 20 20 Final Carried 8 | 5 8 8 8 8 6 Class Distribution -------------------- 51% | Mutant 24% | Scientist-Mutant 23% | Scavenger-Mutant Dominant Class ---------------- Mutant | -10/Materials Scavenger-Mutant | -9/Materials Scavenger-Mutant | -9/Mines Scientist-Mutant | -9/Exiles Scientist-Mutant | -8/Mines Resources | -11 -10 -9 -9 -9 -8 ----------- Run | Yrd Mat Mat Min Exi Min Matter Collected 602 | 263 64 234 . . 41 Remotely . | . . . . . . Salvage Created 863 | 16 381 393 . . 73 Parts 65 | 4 23 32 . . 6 Haulers Intercepted . | . . . . . . Recyclers Shooed 1 | 1 . . . . . Parts Field Recycled . | . . . . . . Retrieved Matter . | . . . . . . Parts Self-Destructed . | . . . . . . Prevented . | . . . . . . Parts Restored . | . . . . . . Kills | -11 -10 -9 -9 -9 -8 ------- Run | Yrd Mat Mat Min Exi Min Combat Hostiles Destroyed 23 | . 11 10 . . 2 Guns 18 | . 8 10 . . . Cannons 2 | . . . . . 2 AOE 3 | . 3 . . . . Classes Destroyed 7 | 1 4 2 . . . Worker 1 | . 1 . . . . Builder 1 | . 1 . . . . Tunneler 1 | 1 . . . . . Operator 1 | . . 1 . . . Swarmer 9 | . 5 4 . . . Grunt 9 | . 6 1 . . 2 Sentry 5 | . . 5 . . . Best Kill Streak 5 | 1 5 5 . . 2 Combat Bots Only 5 | . 4 5 . . 2 Max Kills in Single Turn 3 | 1 3 2 . . 1 Gunslinging . | . . . . . . Exploded 2 | . 2 . . . . Melee . | . . . . . . Uniques/NPCs Destroyed . | . . . . . . Combat | -11 -10 -9 -9 -9 -8 -------- Run | Yrd Mat Mat Min Exi Min Hostile Shots Fired 254 | . 50 111 . . 93 Missed 73 | . 17 32 . . 24 Hits 181 | . 33 79 . . 69 Projectile 181 | . 33 79 . . 69 Critical Strikes 6 | . 1 3 . . 2 Damage Taken 2290 | . 295 954 . . 1041 Core 482 | . 74 191 . . 217 Absorbed by Shields . | . . . . . . Core Remaining (%) 85 | 100 70 . . . . Volleys Fired 86 | 2 20 51 5 . 8 Largest 2 | 2 2 2 2 . 2 Hottest 80 | 80 80 68 40 . 50 Shots Fired 157 | 4 40 93 7 . 13 Gun 147 | 4 40 93 4 . 6 Cannon 10 | . . . 3 . 7 Launcher . | . . . . . . Special . | . . . . . . Kinetic 93 | . 7 66 7 . 13 Thermal . | . . . . . . Explosive . | . . . . . . Electromagnetic 64 | 4 33 27 . . . Robot Hit Streak 12 | 3 11 8 . . 12 Robot Miss Streak 4 | 1 4 4 . . 1 Penetration Max . | . . . . . . Secondary Targets 1 | . 1 . . . . Max Gunslinging Chain 1 | . 1 . . . . Shots Hit Robots 107 | 3 27 65 . . 12 Core Hits 47 | 1 13 27 . . 6 Critical Kills . | . . . . . . Critical Parts Destroyed . | . . . . . . Critical Strikes . | . . . . . . Melee Attacks . | . . . . . . Impact . | . . . . . . Slashing . | . . . . . . Piercing . | . . . . . . Sneak Attacks . | . . . . . . Combat Hostiles . | . . . . . . Follow-up Attacks . | . . . . . . Damage Inflicted 1424 | 42 526 701 . . 155 Guns 1106 | 42 352 659 . . 53 Cannons 102 | . . . . . 102 Explosions 212 | . 170 42 . . . Melee . | . . . . . . Ramming 4 | . 4 . . . . Kinetic 588 | . 25 408 . . 155 Thermal 212 | . 170 42 . . . Explosive . | . . . . . . Electromagnetic 620 | 42 327 251 . . . Impact . | . . . . . . Slashing . | . . . . . . Piercing . | . . . . . . Highest Corruption . | . . . . . . Average Corruption . | . . . . . . Corruption Purged . | . . . . . . Corruption Blocked . | . . . . . . Overload Shots . | . . . . . . Overflow Damage . | . . . . . . Projectiles . | . . . . . . Explosions . | . . . . . . Melee . | . . . . . . Knockbacks 2 | . . . . . 2 Impact . | . . . . . . Kinetic 2 | . . . . . 2 Secondary . | . . . . . . Self-Inflicted Damage . | . . . . . . Shots . | . . . . . . Rammed 1 | . 1 . . . . Targets Rammed 1 | . 1 . . . . Kicked . | . . . . . . Crushed . | . . . . . . Highest Temperature 216 | 18 216 53 4 . 134 Average Temperature 41 | 12 69 16 2 . 77 Received Heat Transfer 795 | . 60 267 . . 468 Siege Activations . | . . . . . . Martial Activations . | . . . . . . Shielding Activations . | . . . . . . Robots Disrupted . | . . . . . . Combat Hostiles . | . . . . . . Robots Corrupted . | . . . . . . Combat Hostiles . | . . . . . . Parts Fried 3 | . 2 1 . . . Impact Corruptions . | . . . . . . Robots Melted . | . . . . . . Combat Hostiles . | . . . . . . Parts Melted 2 | . 2 . . . . Heat Transferred 250 | . 200 50 . . . Parts Sabotaged . | . . . . . . Parts Stolen . | . . . . . . Parts Stripped . | . . . . . . Power Chain Reactions 3 | . 2 1 . . . Alert | -11 -10 -9 -9 -9 -8 ------- Run | Yrd Mat Mat Min Exi Min Maximum Alert Level . | . . . . . . Low Security (%) 100 | 100 100 100 100 . 100 Level 1 . | . . . . . . Level 2 . | . . . . . . Level 3 . | . . . . . . Level 4 . | . . . . . . Level 5 . | . . . . . . High Security . | . . . . . . Max Security . | . . . . . . Peak Influence 154 | 5 154 110 36 . 20 Initial 50 | . . 50 36 . . Average 52 | . 87 59 11 . 2 Influence Increases 651 | 5 304 302 . . 40 Destroy 0b10 Robot/C 460 | . 220 200 . . 40 Destroy 0b10 Robot/NC 20 | 5 10 5 . . . Destroy Leader 110 | . 40 70 . . . Successful Hack 18 | . 10 8 . . . Disable Machine 15 | . 15 . . . . Destroy Structure 13 | . 9 4 . . . Lose Combat Pursuer 15 | . . 15 . . . Influence Decreases 651 | 5 183 329 94 . 40 Entered New Map 129 | . . 71 58 . . Time Decay 438 | 5 183 204 36 . 10 Lost Part 84 | . . 54 . . 30 Squads Dispatched 5 | . 3 2 . . . Investigation 2 | . 2 . . . . Extermination . | . . . . . . Reinforcement 3 | . 1 2 . . . Assault . | . . . . . . Garrison . | . . . . . . Intercept . | . . . . . . Searches Triggered . | . . . . . . Construction Impeded . | . . . . . . Haulers Reinforced . | . . . . . . Active Scanning Responses . | . . . . . . Cargo Convoy Interrupts . | . . . . . . Stealth | -11 -10 -9 -9 -9 -8 --------- Run | Yrd Mat Mat Min Exi Min Distress Signals 4 | . 1 3 . . . Communications Jammed . | . . . . . . Distress Signals . | . . . . . . Times Spotted 40 | . 14 19 . . 7 Peak Tracking Total 8 | . 4 8 . . 7 Tactical Retreats 1 | . . 1 . . . Traps | -11 -10 -9 -9 -9 -8 ------- Run | Yrd Mat Mat Min Exi Min Traps Triggered 3 | . 3 . . . . Indirectly . | . . . . . . Trap Hack Attempts . | . . . . . . Triggered . | . . . . . . Disarmed . | . . . . . . Reprogrammed . | . . . . . . Reused . | . . . . . . Traps Extracted . | . . . . . . Installed . | . . . . . . Triggered . | . . . . . . Machines | -11 -10 -9 -9 -9 -8 ---------- Run | Yrd Mat Mat Min Exi Min Machines Disabled 1 | . 1 . . . . Max in Single Turn 1 | . 1 . . . . Machines Repaired . | . . . . . . Machines Dismantled . | . . . . . . Machines Sabotaged . | . . . . . . Overloaded Fab Kills . | . . . . . . Hacking | -11 -10 -9 -9 -9 -8 --------- Run | Yrd Mat Mat Min Exi Min Machines Accessed 6 | . 3 2 . 1 . Terminals 4 | . 3 1 . . . Fabricators . | . . . . . . Repair Stations . | . . . . . . Recycling Units . | . . . . . . Scanalyzers 1 | . . 1 . . . Garrison Access . | . . . . . . Total Hacks 37 | . 8 6 . 23 . Successful 32 | . 3 6 . 23 . Failed 5 | . 5 . . . . Catastrophic 1 | . 1 . . . . Database Lockouts . | . . . . . . Manual . | . . . . . . Terminals 9 | . 8 1 . . . Fabricators . | . . . . . . Repair Stations . | . . . . . . Recycling Units . | . . . . . . Scanalyzers 5 | . . 5 . . . Garrison Access . | . . . . . . Terminal Hacks 27 | . 3 1 . 23 . Record 23 | . . . . 23 . Emergency Access Points 1 | . . 1 . . . Hauler Manifests 1 | . 1 . . . . Zone Layout 2 | . 2 . . . . Fabricator Hacks . | . . . . . . Repair Station Hacks . | . . . . . . Recycling Unit Hacks . | . . . . . . Scanalyzer 5 | . . 5 . . . Retrieve Study 5 | . . 5 . . . Garrison Access Hacks . | . . . . . . Unauthorized Hacks . | . . . . . . Terminals . | . . . . . . Fabricators . | . . . . . . Repair Stations . | . . . . . . Recycling Units . | . . . . . . Scanalyzers . | . . . . . . Garrison Access . | . . . . . . Data Cores Recovered . | . . . . . . Used . | . . . . . . Hacking Detections 3 | . 3 . . . . Full Trace Events . | . . . . . . Feedback Events . | . . . . . . Feedback Blocked . | . . . . . . Robot Schematics Acquired . | . . . . . . Robots Built . | . . . . . . Authchips . | . . . . . . Time . | . . . . . . Total Robot Build Rating . | . . . . . . Part Schematics Acquired . | . . . . . . Parts Built . | . . . . . . Authchips . | . . . . . . Time . | . . . . . . Total Part Build Rating . | . . . . . . Part Studies Acquired 5 | . . 5 . . . Parts Repaired . | . . . . . . Time . | . . . . . . Parts Recycled . | . . . . . . Recycled Matter . | . . . . . . Retrieved Matter . | . . . . . . Retrieved Components . | . . . . . . Parts Scanalyzed . | . . . . . . Part Schematics Acquired . | . . . . . . Parts Damaged . | . . . . . . Bothacking | -11 -10 -9 -9 -9 -8 ------------ Run | Yrd Mat Mat Min Exi Min Used RIF Installer . | . . . . . . Robots Hacked . | . . . . . . Non-combat . | . . . . . . Combat . | . . . . . . Robot Hacks Applied . | . . . . . . Relay Couplers Released . | . . . . . . Fabnet Peak Effective % . | . . . . . . Robots Rewired . | . . . . . . Allies Hacked . | . . . . . . Hacks Repelled . | . . . . . . Allies | -11 -10 -9 -9 -9 -8 -------- Run | Yrd Mat Mat Min Exi Min Total Allies . | . . . . . . Largest Group . | . . . . . . Highest-Rated Group . | . . . . . . Highest-Rated Ally . | . . . . . . Total Orders . | . . . . . . Ally Attacks . | . . . . . . Total Damage . | . . . . . . Kills . | . . . . . . Allies Corrupted . | . . . . . . Allies Melted . | . . . . . . Intel | -11 -10 -9 -9 -9 -8 ------- Run | Yrd Mat Mat Min Exi Min Active Infowar (turns) 651 | 28 415 208 . . . Terrain 651 | 28 415 208 . . . Robot Analysis Total . | . . . . . . Derelict Logs Recovered 1 | . . . 1 . . Drone Launches . | . . . . . . Drone Recoveries . | . . . . . . Exploration | -11 -10 -9 -9 -9 -8 ------------- Run | Yrd Mat Mat Min Exi Min Turns Passed 1564 | 160 416 457 139 323 69 Spaces Moved 951 | 88 209 236 118 277 23 Core 2 | 2 . . . . . Treads 389 | 86 209 53 . 23 18 Legs 560 | . . 183 118 254 5 Wheels . | . . . . . . Hover . | . . . . . . Flight . | . . . . . . Fastest Speed 50 | 50 160 105 105 105 175 Average Speed 131 | 157 160 120 105 115 202 Slowest Speed 245 | 160 160 175 105 200 245 Overloaded Moves . | . . . . . . Propulsion Burnouts . | . . . . . . Robots Hopped . | . . . . . . Potential Cave-ins . | . . . . . . Cave-ins Triggered . | . . . . . . Exploration Rate (%) 29 | 4 43 18 30 62 18 Regions Visited 5 Branch Regions 3 Pre-discovered Areas 1 | . . . . 1 . Known Exits Taken 1 | . . . 1 . . Unknown Exits Taken 4 | 1 1 1 . 1 . Scrap Searched . | . . . . . . Spaces Dug . | . . . . . . Terrain Destroyed 12 | . 8 4 . . . Melee . | . . . . . . Projectile . | . . . . . . AOE 12 | . 8 4 . . . Terrain Rammed . | . . . . . . Walls Destroyed . | . . . . . . Machines Disabled . | . . . . . . Actions | -11 -10 -9 -9 -9 -8 --------- Run | Yrd Mat Mat Min Exi Min Total 1120 | 103 253 324 126 280 34 Wait 16 | . 13 3 . . . Move 946 | 87 208 235 117 276 23 Hop . | . . . . . . Pick Up 19 | 5 4 9 1 . . Fast Attach 17 | 7 1 8 . . 1 Attach 11 | 1 2 5 1 . 2 Detach 3 | 1 1 1 . . . Swap 8 | . 1 3 1 3 . Drop 13 | . 2 9 1 1 . Fire 86 | 2 20 51 5 . 8 Melee . | . . . . . . Ram . | . . . . . . Kick . | . . . . . . Crush 1 | . 1 . . . . Escape Stasis . | . . . . . . Rewire . | . . . . . . Trap . | . . . . . . Miscellaneous . | . . . . . . Route ------- -11/Scrapyard -10/Materials (discovered 2 exits: *Mat / [*Min]) -9/Materials -9/Mines -9/Exiles -8/Mines History --------- Turn | Location | Event 10 | -11/Scrapyard | Discovered new exit (range 14) 161 | -11/Scrapyard | Entered Materials 300 | -10/Materials | Build established: Mutant 448 | -10/Materials | Discovered new exit (range 9) 542 | -10/Materials | Discovered new exit (range 8) 577 | -10/Materials | Entered another Materials area 577 | -9/Materials | Evolved 2 slots: Propulsion x1, Utility x1 726 | -9/Materials | Lost 3 parts (2n1w) 826 | -9/Materials | Lost 4 parts (1p1u2w) 919 | -9/Materials | Discovered new exit (range 16) 1034 | -9/Materials | Entered Mines 1043 | -9/Mines | Identified exit to Exiles 1085 | -9/Mines | Found a damaged Exp. Sensor Array with a note attached 1088 | -9/Mines | Found Prototype Device 1146 | -9/Mines | Build established: Scavenger-Mutant 1173 | -9/Mines | Entered Exiles 1202 | -9/Exiles | Met 8R-AWN 1220 | -9/Exiles | Met EX-HEX 1277 | -9/Exiles | Met EX-DEC 1303 | -9/Exiles | Visited The Gauntlet 1379 | -9/Exiles | Learned location of Zion (-6) 1471 | -9/Exiles | Build established: Scientist-Mutant 1472 | -9/Exiles | Discovered new exit (range 14) 1496 | -9/Exiles | Entered Mines 1536 | -8/Mines | Core integrity fell below 50% 1556 | -8/Mines | Core integrity fell below 20% 1565 | -8/Mines | Destroyed by H-55 Commando with Gauss Rifle Last Messages --------------- 01541_ R-06 Scavenger collects Imp. Heat Sink. 01543_ R-06 Scavenger collects Aluminum Leg+. 01544_ Lgt. Cannon+ destroyed. 01544_ Lgt. Treads+ destroyed. 01545_ R-06 Scavenger collects Lgt. Nuclear Core. 01546_ R-06 Scavenger destroyed. 01546_ R-06 Scavenger collects Com. Wheel. 01549_ Acquired 41 matter. 01549_ Slug penetrates Wall. 01549_ R-06 Scavenger collects Imp. Heat Sink. 01552_ Lgt. Treads+ destroyed. 01552_ Lgt. Assault Rifle+ destroyed. 01553_ Acquired Lgt. Nuclear Core. 01554_ Aluminum Leg+ destroyed. 01554_ K-01 Serf collects debris. 01558_ Lgt. Nuclear Core destroyed. 01558_ K-01 Serf collects debris. 01565_ Slug penetrates Wall. [Achievement: This Is Interesting...] Map ----- +----------------------------------------------------+ | ?????????????????????????????????????????????????? | | ?????????????????????????????????????????????????? | | ?????????????????????????????????????????????????? | | ?????????????????????????????????????????????????? | | ?????????????????????????????????????????????????? | | ?????????????????????????????????????????????????? | | ?????????????????????????????????????????????????? | | ?????????????????????????????????????????????????? | | ?????????????????????????????????????????????????? | | ?????????????????????????????????????????????????? | | ?????????????????????????????????????????????????? | | ?????????????????????????????????????????????????? | | ?????????????????????????????????????????????????? | | ?????????????????????????????????????????????????? | | ?????????????????????????????????????????????????? | | ??????????????????????????##?????????????????????? | | ?????????????????????????? ##????????????????????? | | ?????????????????????????? ##???????????????????? | | ?????????????????????????? ###?????????????????? | | ????????????????????????## ##????????????????? | | ????????????????????##### ##???????????????? | | ???????????????????## ??????#?????????? | | ??????????????????## ??????? #?????????? | | ??????????????????# #???????? #?? ??????? | | ??????????????????# #???????? #? ??????? | | ??????????????????# @ #???????# # ???????? | | ?????????????????## #??????# ????????? | | ????????????## ## ##?????# ????????? | | ????????????# ####### ?????????? | | ???????????# ugh #????????????? | | ???????????# =gg % #?????????????? | | ???????????## ###%g% ##### #?????????????? | | ????????????##### #??##[ #?????????????? | | ????????????????# ????# #?????????????? | | ????????????????# ?????## ##### ##????????????? | | ????????????????#???????# #?### ####?????????? | | ????????????????????????####?# #?????????? | | ?????????????????????????????# #????????? | | ?????????????????????????????# #### #??????? | | ?????????????????????????????# #??? #??????? | | ????????????????????????????## #???? #??????? | | ???????????????????????????## ##??? #####??????? | | ???????????????????????????# #????##??????????? | | ???????????????????????????# #?????????????? | | ???????????????????????????## ??????????? | | ????????????????????????????### #???????? | | ???????????????????????????????# ########???????? | | ????????????????????????????????###??????????????? | | ?????????????????????????????????????????????????? | | ?????????????????????????????????????????????????? | +----------------------------------------------------+ Best States ------------- Heat Dissipation 28 Energy Generation 14 Energy Capacity 265 Matter Stores 300 Matter Capacity 300 Sight Range 16 Terrain Scan Range 16 Terrain Scan Density 85 Armor Coverage 150 Evasion (%) 55 Targeting Accuracy 5 Recoil Reduction 2 Item Schematics ----------------- None Robot Schematics ------------------ None Fabricated ------------ Nothing Repaired ---------- Nothing Studied --------- Imp. Ion Engine | -9/Materials | Hacked Aluminum Leg | -9/Materials | Hacked Lgt. Treads | -9/Materials | Hacked Lgt. Assault Rifle | -9/Materials | Hacked Lgt. Cannon | -9/Materials | Hacked Alien Tech Used ----------------- None Achievements -------------- Item+ This Is Interesting... Challenges ------------ None Game ------ Seed CryofiberDeflectorThruster Manual? 0 Play Time 00:26:19 Cumulative 49.2 hours Start 2025.11.05 @ 18:37:14 End 2025.11.05 @ 19:03:58 Sessions 3 Manual Loads 0 Difficulty Rogue Special Mode None Game No. 47 Rogue 42 Adventurer 0 Explorer 5 Win Type - Total 0 Types 0/0/0/0/0/0/0/0/0/0 Lore% 25 Gallery% 26 Achievement% 17 Wizard Run 0 Options --------- Layout 2 ASCII 0 Keyboard 0 Movement Mouse Keybinds 0 Fullscreen 2 Font 24/Smallcaps Map View 50x44 Zoom Use 26% Tactical HUD 1 Map Filters NONE Filters NONE Steam 1 RUN: a29eb77b-290f-4f4e-95c3-9d51e697d6e8